[Event "NOR-ch Various 2019"]
[Site "Larvik"]
[Date "2019.07.12"]
[Round "8.22"]
[White "Valvag, Torbjorn"]
[Black "Evenshaug, Amadeus Hestvik"]
[Result "1-0"]
[ECO "B38"]
[WhiteElo "1912"]
[BlackElo "1769"]
[Annotator "NA"]
[PlyCount "76"]
[EventDate "2019.07.06"]
[EventType "swiss"]
[EventCountry "NOR"]
[SourceTitle "playchess.com"]
[Source "ChessBase"]
[SourceQuality "1"]
[TimeControl "40/5400+30:1800+30"]

1. e4 {[%emt 0:00:00]} c5 {[%emt 0:00:21]} 2. Nf3 {[%emt 0:00:00]} g6 {[%emt 0:00:15]} 3. d4 {[%emt 0:00:00]} cxd4 {[%emt 0:00:05]} 4. Nxd4 {[%emt 0:00:00]} Nc6 {[%emt 0:00:11]} 5. Be3 {[%emt 0:00:48]} Bg7 {[%emt 0:00:11]} 6. c4 {[%emt 0:00:34]} d6 {[%emt 0:01:07]} 7. Nc3 {[%emt 0:00:05]} Nf6 {[%emt 0:00:14]} 8. f3 {[%emt 0:00:09]} O-O {[%emt 0:00:59]} 9. Qd2 {[%emt 0:00:18]} Bd7 {[%emt 0:02:24]} 10. Be2 {[%emt 0:01:34]} Re8 {[%emt 0:09:02]} 11. O-O {[%emt 0:04:37]} a6 {[%emt 0:11:47]} 12. Rfd1 {[%emt 0:00:22]} Qc7 {[%emt 0:01:32]} 13. Rac1 {[%emt 0:00:32]} Qa5 {[%emt 0:07:30]} 14. a3 {[%emt 0:02:04]} Rec8 {[%emt 0:03:21]} 15. Nb3 {[%emt 0:02:44]} Qc7 {[%emt 0:04:06]} 16. Nd5 {[%emt 0:00:20]} Qd8 {[%emt 0:06:20]} 17. Nb6 {[%emt 0:00:50]} Ne5 {[%emt 0:02:12]} 18. Nxa8 {[%emt 0:00:24]} Rxa8 {[%emt 0:00:19]} 19. Nd4 {[%emt 0:03:07]} Nc6 {[%emt 0:02:21]} 20. Nxc6 {[%emt 0:00:15]} bxc6 {[%emt 0:00:37]} 21. c5 {[%emt 0:07:36]} Qb8 {[%emt 0:02:28]} 22. b4 {[%emt 0:10:18]} d5 {[%emt 0:02:31]} 23. Bg5 {[%emt 0:06:26]} e6 {[%emt 0:03:24]} 24. Bf4 {[%emt 0:02:07]} e5 {[%emt 0:03:54]} 25. Bg5 {[%emt 0:01:28]} d4 {[%emt 0:01:01]} 26. Bc4 {[%emt 0:00:10]} Be8 {[%emt 0:06:38]} 27. Qe2 {[%emt 0:01:22]} a5 {[%emt 0:03:17]} 28. Rb1 {[%emt 0:00:42]} axb4 {[%emt 0:01:19]} 29. axb4 {[%emt 0:00:33]} Qc8 {[%emt 0:04:55]} 30. Ra1 {[%emt 0:02:29]} Nd7 {[%emt 0:02:48]} 31. Qb2 {[%emt 0:02:27]} Rb8 {[%emt 0:02:08]} 32. Be7 {[%emt 0:01:22]} Qb7 {[%emt 0:02:47]} 33. Rdb1 {[%emt 0:06:03]} Bf8 {[%emt 0:01:35]} 34. Bxf8 {[%emt 0:02:59]} Kxf8 {[%emt 0:00:25]} 35. Qa3 {[%emt 0:00:06]} f5 {[%emt 0:02:07]} 36. b5 {[%emt 0:02:42]} Rc8 {[%emt 0:03:27]} 37. b6 {[%emt 0:00:40]} Kg7 {[%emt 0:01:33]} 38. Ba6 {[%emt 0:00:20]} Qb8 {[%emt 0:04:33]} 1-0

[Event "NOR-ch Various 2019"]
[Site "Larvik"]
[Date "2019.07.12"]
[Round "8.23"]
[White "Lye, Sverre"]
[Black "Tunsjo, Axel"]
[Result "0-1"]
[ECO "B40"]
[WhiteElo "1839"]
[BlackElo "2039"]
[Annotator "NA"]
[PlyCount "130"]
[EventDate "2019.07.06"]
[EventType "swiss"]
[EventCountry "NOR"]
[SourceTitle "playchess.com"]
[Source "ChessBase"]
[SourceQuality "1"]
[TimeControl "40/5400+30:1800+30"]

1. e4 {[%emt 0:00:00]} c5 {[%emt 0:00:00]} 2. Nf3 {[%emt 0:00:00]} e6 {[%emt 0:00:00]} 3. g3 {[%emt 0:00:19]} Nc6 {[%emt 0:00:00]} 4. Bg2 {[%emt 0:00:14]} Nf6 {[%emt 0:00:26]} 5. Qe2 {[%emt 0:00:58]} Qc7 {[%emt 0:02:17]} 6. O-O {[%emt 0:03:21]} Be7 {[%emt 0:00:45]} 7. c3 {[%emt 0:03:46]} d5 {[%emt 0:05:51]} 8. d3 {[%emt 0:02:29]} b6 {[%emt 0:01:42]} 9. Bf4 {[%emt 0:03:29]} Qd7 {[%emt 0:02:50]} 10. e5 {[%emt 0:01:50]} Nh5 {[%emt 0:04:08]} 11. Bd2 {[%emt 0:04:47]} f5 {[%emt 0:00:48]} 12. exf6 {[%emt 0:03:32]} Nxf6 {[%emt 0:00:45]} 13. Re1 {[%emt 0:04:33]} h6 {[%emt 0:06:41]} 14. Bh3 {[%emt 0:05:34]} Kf7 {[%emt 0:02:17]} 15. a4 {[%emt 0:13:10]} Re8 {[%emt 0:01:34]} 16. a5 {[%emt 0:08:18]} b5 {[%emt 0:06:57]} 17. Bf4 {[%emt 0:08:39]} Bd6 {[%emt 0:04:53]} 18. Ne5+ {[%emt 0:01:28]} Nxe5 {[%emt 0:04:31]} 19. Bxe5 {[%emt 0:00:08]} Bxe5 {[%emt 0:01:03]} 20. Qxe5 {[%emt 0:00:06]} Bb7 {[%emt 0:00:30]} 21. d4 {[%emt 0:06:29]} Rad8 {[%emt 0:08:55]} 22. Nd2 {[%emt 0:05:01]} cxd4 {[%emt 0:09:53]} 23. cxd4 {[%emt 0:01:14]} Qd6 {[%emt 0:04:25]} 24. Qxd6 {[%emt 0:04:49]} Rxd6 {[%emt 0:00:14]} 25. Rac1 {[%emt 0:00:20]} Ne4 {[%emt 0:01:14]} 26. Nb3 {[%emt 0:01:39]} Rc6 {[%emt 0:04:09]} 27. f3 {[%emt 0:01:44]} Ng5 {[%emt 0:01:09]} 28. Bg2 {[%emt 0:00:08]} Rc4 {[%emt 0:00:29]} 29. h4 {[%emt 0:02:15]} Nh7 {[%emt 0:00:11]} 30. Nc5 {[%emt 0:04:41]} Ba8 {[%emt 0:02:16]} 31. Red1 {[%emt 0:02:25]} Rc8 {[%emt 0:04:38]} 32. Bf1 {[%emt 0:01:06]} Rb4 {[%emt 0:01:48]} 33. b3 {[%emt 0:00:46]} Nf8 {[%emt 0:02:25]} 34. Rb1 {[%emt 0:01:07]} Rxd4 {[%emt 0:03:04]} 35. Rxd4 {[%emt 0:00:11]} Rxc5 {[%emt 0:00:05]} 36. b4 {[%emt 0:01:19]} Rc3 {[%emt 0:00:17]} 37. Rd3 {[%emt 0:00:49]} Rc6 {[%emt 0:00:24]} 38. Rdd1 {[%emt 0:00:37]} a6 {[%emt 0:00:18]} 39. Rdc1 {[%emt 0:00:25]} Ke7 {[%emt 0:00:08]} 40. Kf2 {[%emt 0:01:27]} Kd6 {[%emt 0:02:04]} 41. Ke3 {[%emt 0:31:10]} Nd7 {[%emt 0:30:57]} 42. f4 {[%emt 0:01:40]} Nf6 {[%emt 0:02:14]} 43. Rxc6+ {[%emt 0:00:38]} Bxc6 {[%emt 0:00:13]} 44. Bg2 {[%emt 0:00:49]} d4+ {[%emt 0:05:40]} 45. Kf2 {[%emt 0:01:07]} Bxg2 {[%emt 0:00:34]} 46. Kxg2 {[%emt 0:00:53]} Ne4 {[%emt 0:02:30]} 47. Re1 {[%emt 0:00:00]} Nc3 {[%emt 0:00:00]} 48. g4 {[%emt 0:00:00]} Na2 {[%emt 0:00:00]} 49. f5 {[%emt 0:00:00]} exf5 {[%emt 0:00:00]} 50. gxf5 {[%emt 0:00:00]} Nxb4 {[%emt 0:00:00]} 51. Re6+ {[%emt 0:00:00]} Kd5 {[%emt 0:00:00]} 52. Re7 {[%emt 0:00:00]} Kc4 {[%emt 0:00:00]} 53. Rc7+ {[%emt 0:00:00]} Kd3 {[%emt 0:00:00]} 54. Rxg7 {[%emt 0:00:00]} Nd5 {[%emt 0:00:00]} 55. Ra7 {[%emt 0:00:00]} b4 {[%emt 0:00:00]} 56. Rxa6 {[%emt 0:00:00]} b3 {[%emt 0:00:00]} 57. f6 {[%emt 0:00:00]} b2 {[%emt 0:00:00]} 58. f7 {[%emt 0:00:00]} b1=Q {[%emt 0:00:00]} 59. f8=Q {[%emt 0:00:00]} Ne3+ {[%emt 0:00:00]} 60. Kh3 {[%emt 0:00:11]} Qh1+ {[%emt 0:00:00]} 61. Kg3 {[%emt 0:00:00]} Qg2+ {[%emt 0:00:00]} 62. Kf4 {[%emt 0:00:12]} Qe4+ {[%emt 0:00:00]} 63. Kg3 {[%emt 0:00:24]} Qg4+ {[%emt 0:00:00]} 64. Kf2 {[%emt 0:00:09]} Qg2+ {[%emt 0:00:00]} 65. Ke1 {[%emt 0:00:08]} Qe2# {[%emt 0:00:00]} 0-1

[Event "NOR-ch Various 2019"]
[Site "Larvik"]
[Date "2019.07.12"]
[Round "8.24"]
[White "Stromhaug, Kristoffer Wang"]
[Black "Olsen, William Alexander"]
[Result "1-0"]
[ECO "B15"]
[WhiteElo "1566"]
[BlackElo "1764"]
[Annotator "NA"]
[PlyCount "145"]
[EventDate "2019.07.06"]
[EventType "swiss"]
[EventCountry "NOR"]
[SourceTitle "playchess.com"]
[Source "ChessBase"]
[SourceQuality "1"]
[TimeControl "40/5400+30:1800+30"]

1. e4 {[%emt 0:00:00]} c6 {[%emt 0:00:00]} 2. d4 {[%emt 0:00:00]} d5 {[%emt 0:00:00]} 3. Nd2 {[%emt 0:00:11]} dxe4 {[%emt 0:00:11]} 4. Nxe4 {[%emt 0:00:09]} Nf6 {[%emt 0:00:05]} 5. Nxf6+ {[%emt 0:00:33]} exf6 {[%emt 0:00:09]} 6. c3 {[%emt 0:00:42]} Bd6 {[%emt 0:00:12]} 7. Bd3 {[%emt 0:00:55]} O-O {[%emt 0:00:56]} 8. Ne2 {[%emt 0:00:22]} Re8 {[%emt 0:00:34]} 9. O-O {[%emt 0:00:50]} Qc7 {[%emt 0:00:07]} 10. h3 {[%emt 0:01:54]} Nd7 {[%emt 0:00:22]} 11. Qc2 {[%emt 0:00:40]} Nf8 {[%emt 0:00:22]} 12. c4 {[%emt 0:04:36]} c5 {[%emt 0:01:49]} 13. d5 {[%emt 0:05:25]} Bd7 {[%emt 0:04:02]} 14. a4 {[%emt 0:07:19]} a6 {[%emt 0:03:03]} 15. a5 {[%emt 0:01:36]} g6 {[%emt 0:05:55]} 16. Bd2 {[%emt 0:02:06]} f5 {[%emt 0:01:19]} 17. f4 {[%emt 0:09:52]} h5 {[%emt 0:01:25]} 18. Bc3 {[%emt 0:01:06]} Nh7 {[%emt 0:01:05]} 19. Rf3 {[%emt 0:03:19]} Be7 {[%emt 0:01:00]} 20. Ng3 {[%emt 0:24:43]} Bf6 {[%emt 0:03:17]} 21. Ne2 {[%emt 0:13:28]} Re7 {[%emt 0:07:30]} 22. Bxf6 {[%emt 0:00:00]} Nxf6 {[%emt 0:00:23]} 23. Nc3 {[%emt 0:01:03]} Rae8 {[%emt 0:01:10]} 24. Qd2 {[%emt 0:00:39]} Qd6 {[%emt 0:00:50]} 25. Ra3 {[%emt 0:00:43]} Ne4 {[%emt 0:02:47]} 26. Bxe4 {[%emt 0:00:08]} fxe4 {[%emt 0:00:01]} 27. Rf1 {[%emt 0:00:46]} Qf6 {[%emt 0:09:57]} 28. Ne2 {[%emt 0:02:05]} Bf5 {[%emt 0:08:51]} 29. Rb3 {[%emt 0:01:12]} Rd8 {[%emt 0:01:30]} 30. Qe3 {[%emt 0:00:31]} Rc7 {[%emt 0:00:55]} 31. Nc3 {[%emt 0:01:51]} Qd4 {[%emt 0:00:12]} 32. Re1 {[%emt 0:02:26]} Qxc4 {[%emt 0:00:16]} 33. Rb6 {[%emt 0:00:12]} Qd4 {[%emt 0:00:51]} 34. Kf2 {[%emt 0:00:50]} Re7 {[%emt 0:04:03]} 35. Rd1 {[%emt 0:01:38]} Qxe3+ {[%emt 0:01:08]} 36. Kxe3 {[%emt 0:00:04]} Kg7 {[%emt 0:04:35]} 37. Na4 {[%emt 0:00:53]} Rc7 {[%emt 0:01:53]} 38. d6 {[%emt 0:02:40]} Rcc8 {[%emt 0:00:01]} 39. Rxb7 {[%emt 0:01:05]} Be6 {[%emt 0:01:38]} 40. d7 {[%emt 0:04:12]} Rc6 {[%emt 0:00:58]} 41. Kxe4 {[%emt 0:30:48]} Kf6 {[%emt 0:32:24]} 42. Nb6 {[%emt 0:01:17]} Bf5+ {[%emt 0:01:48]} 43. Kd5 {[%emt 0:01:25]} Re6 {[%emt 0:01:19]} 44. Kxc5 {[%emt 0:00:13]} Be4 {[%emt 0:00:59]} 45. Rc7 {[%emt 0:00:22]} Ke7 {[%emt 0:01:29]} 46. Rd6 {[%emt 0:03:23]} Rxd6 {[%emt 0:01:00]} 47. Nc8+ {[%emt 0:00:06]} Ke6 {[%emt 0:00:12]} 48. Nxd6 {[%emt 0:00:08]} Bxg2 {[%emt 0:00:23]} 49. h4 Rxd7 {[%emt 0:02:49]} 50. Rxd7 {[%emt 0:00:58]} Kxd7 {[%emt 0:00:01]} 51. Nxf7 {[%emt 0:00:03]} Ke6 {[%emt 0:00:27]} 52. Nd6 {[%emt 0:01:18]} Bf1 {[%emt 0:00:16]} 53. b4 {[%emt 0:00:42]} Be2 {[%emt 0:00:13]} 54. b5 {[%emt 0:00:45]} axb5 {[%emt 0:00:59]} 55. Nxb5 {[%emt 0:00:09]} Bf1 {[%emt 0:00:29]} 56. a6 {[%emt 0:00:24]} Kf5 {[%emt 0:00:21]} 57. a7 {[%emt 0:00:07]} Bg2 {[%emt 0:00:06]} 58. Nd4+ {[%emt 0:00:22]} Kxf4 {[%emt 0:00:17]} 59. Nc6 {[%emt 0:00:05]} g5 {[%emt 0:00:10]} 60. hxg5 {[%emt 0:00:17]} Kxg5 {[%emt 0:00:22]} 61. a8=Q {[%emt 0:00:11]} Be4 {[%emt 0:00:20]} 62. Qg8+ {[%emt 0:00:30]} Kf4 {[%emt 0:00:01]} 63. Kd4 {[%emt 0:00:39]} Bxc6 {[%emt 0:00:08]} 64. Qf7+ {[%emt 0:00:26]} Kg5 {[%emt 0:00:26]} 65. Qe7+ {[%emt 0:00:14]} Kf5 {[%emt 0:00:09]} 66. Qe5+ {[%emt 0:00:23]} Kg4 {[%emt 0:00:10]} 67. Qe6+ {[%emt 0:00:10]} Kg3 {[%emt 0:00:01]} 68. Qxc6 {[%emt 0:00:15]} h4 {[%emt 0:00:11]} 69. Qh1 {[%emt 0:00:06]} h3 {[%emt 0:00:05]} 70. Ke4 {[%emt 0:00:11]} h2 {[%emt 0:00:10]} 71. Qf3+ {[%emt 0:00:22]} Kh4 {[%emt 0:00:07]} 72. Kf4 {[%emt 0:00:26]} h1=B {[%emt 0:00:21]} 73. Qg4# {[%emt 0:00:04]} 1-0

[Event "NOR-ch Various 2019"]
[Site "Larvik"]
[Date "2019.07.12"]
[Round "8.25"]
[White "Brattgjerd, Isak Vinh"]
[Black "Strand, Vetle Bjorge"]
[Result "1-0"]
[ECO "D02"]
[WhiteElo "1571"]
[BlackElo "1765"]
[Annotator "NA"]
[PlyCount "133"]
[EventDate "2019.07.06"]
[EventType "swiss"]
[EventCountry "NOR"]
[SourceTitle "playchess.com"]
[Source "ChessBase"]
[SourceQuality "1"]
[TimeControl "40/5400+30:1800+30"]

1. d4 {[%emt 0:01:14]} Nf6 {[%emt 0:00:00]} 2. Bf4 {[%emt 0:01:13]} d5 {[%emt 0:00:00]} 3. e3 {[%emt 0:00:06]} c5 {[%emt 0:00:00]} 4. c3 {[%emt 0:00:20]} Nc6 {[%emt 0:00:00]} 5. Nf3 {[%emt 0:00:54]} Qb6 {[%emt 0:00:17]} 6. Qb3 {[%emt 0:00:40]} c4 {[%emt 0:00:33]} 7. Qxb6 {[%emt 0:01:25]} axb6 {[%emt 0:00:06]} 8. Na3 {[%emt 0:00:28]} Bf5 {[%emt 0:11:22]} 9. Nb5 {[%emt 0:07:54]} Rc8 {[%emt 0:04:00]} 10. h3 {[%emt 0:14:14]} Kd7 {[%emt 0:16:58]} 11. Ng5 {[%emt 0:01:53]} Bg6 {[%emt 0:00:34]} 12. g4 {[%emt 0:00:55]} h6 {[%emt 0:00:59]} 13. Nf3 {[%emt 0:00:18]} Ne4 {[%emt 0:02:37]} 14. Nh4 {[%emt 0:05:27]} Bh7 {[%emt 0:01:40]} 15. f3 {[%emt 0:00:08]} Nf6 {[%emt 0:08:07]} 16. Ng2 {[%emt 0:01:59]} e6 {[%emt 0:02:55]} 17. Be2 {[%emt 0:02:24]} Ne8 {[%emt 0:01:57]} 18. Kf2 {[%emt 0:04:11]} Nd6 {[%emt 0:00:25]} 19. Nxd6 {[%emt 0:00:40]} Bxd6 {[%emt 0:00:09]} 20. Rhd1 {[%emt 0:00:34]} Ra8 {[%emt 0:05:54]} 21. e4 {[%emt 0:06:21]} b5 {[%emt 0:05:54]} 22. exd5 {[%emt 0:02:38]} exd5 {[%emt 0:00:24]} 23. Be5 {[%emt 0:01:28]} f6 {[%emt 0:04:37]} 24. Bxd6 {[%emt 0:02:42]} Kxd6 {[%emt 0:02:33]} 25. Ne3 {[%emt 0:03:20]} Rhe8 {[%emt 0:06:39]} 26. f4 {[%emt 0:05:46]} Ne7 {[%emt 0:07:58]} 27. Bf3 {[%emt 0:05:29]} g6 {[%emt 0:07:30]} 28. Re1 {[%emt 0:03:59]} Bg8 {[%emt 0:00:48]} 29. a3 {[%emt 0:00:35]} Nc6 {[%emt 0:01:18]} 30. h4 {[%emt 0:02:07]} Ne7 {[%emt 0:01:40]} 31. Re2 {[%emt 0:02:05]} Bf7 {[%emt 0:02:26]} 32. Rae1 {[%emt 0:03:41]} b6 {[%emt 0:01:15]} 33. f5 {[%emt 0:06:21]} gxf5 {[%emt 0:01:15]} 34. gxf5 {[%emt 0:00:29]} Ng8 {[%emt 0:00:58]} 35. Bxd5 {[%emt 0:05:23]} Bxd5 {[%emt 0:00:14]} 36. Nxc4+ {[%emt 0:00:08]} Bxc4 {[%emt 0:01:11]} 37. Rxe8 {[%emt 0:00:05]} Rxe8 {[%emt 0:00:05]} 38. Rxe8 {[%emt 0:00:06]} Kd7 {[%emt 0:01:21]} 39. Rf8 {[%emt 0:00:44]} Kc7 {[%emt 0:00:33]} 40. Re8 {[%emt 0:00:23]} Kd7 {[%emt 0:00:17]} 41. Rf8 {[%emt 0:37:09]} Kc7 {[%emt 0:30:17]} 42. Kg3 {[%emt 0:00:44]} Kd7 {[%emt 0:01:35]} 43. Kg4 {[%emt 0:01:10]} Be2+ {[%emt 0:00:53]} 44. Kf4 {[%emt 0:00:00]} Bc4 {[%emt 0:00:00]} 45. Ke4 {[%emt 0:00:00]} Kc6 {[%emt 0:00:00]} 46. Ke3 {[%emt 0:00:00]} Kc7 {[%emt 0:00:00]} 47. Kd2 {[%emt 0:00:00]} Bb3 {[%emt 0:00:00]} 48. Kd3 {[%emt 0:00:00]} Kd7 {[%emt 0:00:00]} 49. a4 {[%emt 0:00:00]} bxa4 {[%emt 0:00:00]} 50. c4 {[%emt 0:00:00]} b5 {[%emt 0:00:00]} 51. cxb5 {[%emt 0:00:00]} Kd6 {[%emt 0:00:00]} 52. Kc3 {[%emt 0:00:00]} Kc7 {[%emt 0:00:00]} 53. Re8 {[%emt 0:00:00]} Bf7 {[%emt 0:00:00]} 54. Rf8 {[%emt 0:00:00]} Bb3 {[%emt 0:00:00]} 55. Kb4 {[%emt 0:00:00]} Kb6 {[%emt 0:04:49]} 56. h5 {[%emt 0:00:00]} Bd5 {[%emt 0:01:45]} 57. Kxa4 {[%emt 0:00:00]} Kb7 {[%emt 0:01:05]} 58. Rd8 {[%emt 0:00:00]} Bc4 {[%emt 0:00:31]} 59. b3 {[%emt 0:00:00]} Be2 {[%emt 0:00:17]} 60. Rxg8 {[%emt 0:00:00]} Bxh5 {[%emt 0:00:03]} 61. Ka5 {[%emt 0:00:00]} Be2 {[%emt 0:00:32]} 62. Rg7+ {[%emt 0:00:00]} Kc8 {[%emt 0:00:11]} 63. b6 {[%emt 0:00:00]} h5 {[%emt 0:00:46]} 64. b4 {[%emt 0:00:00]} h4 {[%emt 0:00:07]} 65. Rh7 {[%emt 0:00:00]} h3 {[%emt 0:00:14]} 66. b7+ {[%emt 0:00:00]} Kb8 {[%emt 0:00:35]} 67. Kb6 {[%emt 0:00:00]} 1-0

[Event "NOR-ch Various 2019"]
[Site "Larvik"]
[Date "2019.07.12"]
[Round "8.26"]
[White "Unneland, Mathias"]
[Black "Fuglestein, Sander"]
[Result "1/2-1/2"]
[ECO "D45"]
[WhiteElo "2008"]
[BlackElo "1997"]
[Annotator "NA"]
[PlyCount "65"]
[EventDate "2019.07.06"]
[EventType "swiss"]
[EventCountry "NOR"]
[SourceTitle "playchess.com"]
[Source "ChessBase"]
[SourceQuality "1"]
[TimeControl "40/5400+30:1800+30"]

1. d4 {[%emt 0:00:00]} Nf6 {[%emt 0:00:00]} 2. c4 {[%emt 0:00:00]} e6 {[%emt 0:00:00]} 3. Nf3 {[%emt 0:00:00]} d5 {[%emt 0:00:00]} 4. Nc3 {[%emt 0:00:00]} c6 {[%emt 0:00:00]} 5. e3 {[%emt 0:00:00]} Nbd7 {[%emt 0:00:00]} 6. Qc2 {[%emt 0:00:48]} Bd6 {[%emt 0:00:00]} 7. g4 {[%emt 0:03:00]} Nxg4 {[%emt 0:00:04]} 8. Rg1 {[%emt 0:00:08]} f5 {[%emt 0:00:15]} 9. h3 {[%emt 0:01:13]} Ngf6 {[%emt 0:00:06]} 10. Rxg7 {[%emt 0:01:21]} Ne4 {[%emt 0:01:14]} 11. Be2 {[%emt 0:04:52]} Qf6 {[%emt 0:04:30]} 12. Rg2 {[%emt 0:00:39]} Nf8 {[%emt 0:03:26]} 13. Bd2 {[%emt 0:02:27]} Bd7 {[%emt 0:02:26]} 14. O-O-O {[%emt 0:10:44]} O-O-O {[%emt 0:04:05]} 15. c5 {[%emt 0:08:03]} Bb8 {[%emt 0:06:26]} 16. b4 {[%emt 0:06:24]} Ng6 {[%emt 0:09:38]} 17. b5 {[%emt 0:09:41]} cxb5 {[%emt 0:11:12]} 18. Nxb5 {[%emt 0:02:31]} Bc6 {[%emt 0:07:41]} 19. Qb2 {[%emt 0:03:56]} e5 {[%emt 0:09:52]} 20. Qa3 {[%emt 0:02:09]} a6 {[%emt 0:03:34]} 21. dxe5 {[%emt 0:01:00]} Nxe5 {[%emt 0:01:11]} 22. Nxe5 {[%emt 0:06:00]} Bxe5 {[%emt 0:06:15]} 23. Nd4 {[%emt 0:01:49]} Bxd4 {[%emt 0:05:58]} 24. exd4 {[%emt 0:00:16]} Nxd2 {[%emt 0:01:43]} 25. Rxd2 {[%emt 0:00:15]} Qf7 {[%emt 0:08:37]} 26. Qf3 {[%emt 0:00:49]} Rhg8 {[%emt 0:03:33]} 27. Bd3 {[%emt 0:01:00]} Rxg2 {[%emt 0:01:32]} 28. Qxg2 {[%emt 0:00:07]} Re8 {[%emt 0:00:57]} 29. Qg5 {[%emt 0:01:13]} Bd7 {[%emt 0:01:26]} 30. c6 {[%emt 0:02:34]} Bxc6 {[%emt 0:00:49]} 31. Qxf5+ {[%emt 0:00:31]} Qxf5 {[%emt 0:00:21]} 32. Bxf5+ {[%emt 0:00:07]} Bd7 {[%emt 0:00:25]} 33. Rc2+ {[%emt 0:00:36]} 1/2-1/2

[Event "NOR-ch Various 2019"]
[Site "Larvik"]
[Date "2019.07.12"]
[Round "8.27"]
[White "Grave, Jacob Templen"]
[Black "Strand, Amund Pihl"]
[Result "1-0"]
[ECO "E49"]
[WhiteElo "1800"]
[BlackElo "1665"]
[Annotator "NA"]
[PlyCount "81"]
[EventDate "2019.07.06"]
[EventType "swiss"]
[EventCountry "NOR"]
[SourceTitle "playchess.com"]
[Source "ChessBase"]
[SourceQuality "1"]
[TimeControl "40/5400+30:1800+30"]

1. d4 {[%emt 0:00:00]} Nf6 {[%emt 0:00:00]} 2. c4 {[%emt 0:00:00]} e6 {[%emt 0:00:00]} 3. Nc3 {[%emt 0:00:00]} Bb4 {[%emt 0:00:00]} 4. e3 {[%emt 0:00:00]} c5 {[%emt 0:00:00]} 5. a3 {[%emt 0:01:34]} Bxc3+ {[%emt 0:00:48]} 6. bxc3 {[%emt 0:00:04]} b6 {[%emt 0:05:35]} 7. Bd3 {[%emt 0:02:26]} Bb7 {[%emt 0:03:09]} 8. f3 {[%emt 0:04:06]} d5 {[%emt 0:03:27]} 9. cxd5 {[%emt 0:03:33]} exd5 {[%emt 0:02:10]} 10. Ne2 {[%emt 0:08:25]} O-O {[%emt 0:02:18]} 11. O-O {[%emt 0:00:19]} Re8 {[%emt 0:08:18]} 12. Ng3 {[%emt 0:04:54]} cxd4 {[%emt 0:16:11]} 13. cxd4 {[%emt 0:07:31]} Nc6 {[%emt 0:01:09]} 14. Bd2 {[%emt 0:01:39]} a5 {[%emt 0:09:32]} 15. Qa4 {[%emt 0:04:33]} Re6 {[%emt 0:03:43]} 16. Rfc1 {[%emt 0:05:17]} Ne7 {[%emt 0:03:41]} 17. Rab1 {[%emt 0:12:26]} Bc6 {[%emt 0:03:27]} 18. Qb3 {[%emt 0:00:41]} Rb8 {[%emt 0:05:51]} 19. Bxa5 {[%emt 0:07:22]} Ba4 {[%emt 0:12:36]} 20. Qxa4 {[%emt 0:00:35]} bxa5 {[%emt 0:00:18]} 21. Rxb8 {[%emt 0:10:00]} Qxb8 {[%emt 0:00:02]} 22. Nf5 {[%emt 0:02:53]} g6 {[%emt 0:02:52]} 23. Nxe7+ {[%emt 0:00:36]} Rxe7 {[%emt 0:00:03]} 24. Qxa5 {[%emt 0:01:14]} Rxe3 {[%emt 0:00:43]} 25. Qa6 {[%emt 0:01:49]} Qb2 {[%emt 0:03:59]} 26. Qc8+ {[%emt 0:01:46]} Kg7 {[%emt 0:02:26]} 27. Qc3 {[%emt 0:00:47]} Qb6 {[%emt 0:01:05]} 28. Kf2 {[%emt 0:00:58]} Re6 {[%emt 0:01:44]} 29. Rb1 {[%emt 0:01:39]} Qd6 {[%emt 0:01:04]} 30. g3 {[%emt 0:02:05]} Qe7 {[%emt 0:01:37]} 31. Qb4 {[%emt 0:02:08]} Qa7 {[%emt 0:03:10]} 32. a4 {[%emt 0:01:42]} Nd7 {[%emt 0:02:16]} 33. a5 {[%emt 0:00:39]} Nb8 {[%emt 0:00:15]} 34. Qc5 {[%emt 0:05:16]} Qa8 {[%emt 0:00:21]} 35. Qc7 {[%emt 0:02:50]} Nc6 {[%emt 0:02:27]} 36. a6 {[%emt 0:00:46]} Re7 {[%emt 0:00:59]} 37. Qb6 {[%emt 0:01:36]} Ra7 {[%emt 0:00:38]} 38. Rc1 {[%emt 0:01:49]} Nb8 {[%emt 0:00:33]} 39. Rc8 {[%emt 0:00:57]} Rxa6 {[%emt 0:00:28]} 40. Bxa6 {[%emt 0:01:51]} Qxa6 {[%emt 0:00:08]} 41. Rxb8 {[%emt 0:30:29]} 1-0

[Event "NOR-ch Various 2019"]
[Site "Larvik"]
[Date "2019.07.12"]
[Round "8.28"]
[White "Aulin-Jansson, Joran"]
[Black "Hobber, Anders"]
[Result "0-1"]
[ECO "B40"]
[WhiteElo "2223"]
[BlackElo "2294"]
[Annotator "NA"]
[PlyCount "102"]
[EventDate "2019.07.06"]
[EventType "swiss"]
[EventCountry "NOR"]
[SourceTitle "playchess.com"]
[Source "ChessBase"]
[SourceQuality "1"]
[TimeControl "40/5400+30:1800+30"]

1. e4 {[%emt 0:00:00]} e6 {[%emt 0:00:01]} 2. d3 {[%emt 0:00:00]} d5 {[%emt 0:00:24]} 3. Nd2 {[%emt 0:00:00]} Nf6 {[%emt 0:00:36]} 4. Ngf3 {[%emt 0:00:00]} c5 {[%emt 0:04:21]} 5. Be2 {[%emt 0:03:47]} Nc6 {[%emt 0:00:57]} 6. O-O {[%emt 0:00:08]} Be7 {[%emt 0:00:53]} 7. c3 {[%emt 0:00:09]} O-O {[%emt 0:00:26]} 8. Qc2 {[%emt 0:00:05]} b5 {[%emt 0:08:21]} 9. Re1 {[%emt 0:01:55]} a5 {[%emt 0:07:53]} 10. Nf1 {[%emt 0:03:30]} Bb7 {[%emt 0:10:19]} 11. Ng3 {[%emt 0:06:28]} b4 {[%emt 0:06:40]} 12. Bg5 {[%emt 0:05:08]} a4 {[%emt 0:14:04]} 13. c4 {[%emt 0:03:09]} dxe4 {[%emt 0:07:57]} 14. dxe4 {[%emt 0:00:08]} Nd7 {[%emt 0:00:50]} 15. Be3 {[%emt 0:01:58]} a3 {[%emt 0:05:27]} 16. b3 {[%emt 0:00:06]} Bf6 {[%emt 0:03:43]} 17. Rad1 {[%emt 0:00:06]} Qc7 {[%emt 0:00:36]} 18. Nh5 {[%emt 0:02:32]} Bc3 {[%emt 0:00:29]} 19. Bf4 {[%emt 0:00:24]} Nde5 {[%emt 0:03:34]} 20. Nxe5 {[%emt 0:02:59]} Bxe5 {[%emt 0:01:38]} 21. Bxe5 {[%emt 0:01:49]} Qxe5 {[%emt 0:01:31]} 22. f4 {[%emt 0:04:16]} Nd4 {[%emt 0:03:28]} 23. Qd2 {[%emt 0:03:16]} Qxe4 {[%emt 0:00:21]} 24. Bd3 {[%emt 0:00:09]} Qc6 {[%emt 0:00:14]} 25. Qf2 {[%emt 0:05:24]} f5 {[%emt 0:02:19]} 26. Re3 {[%emt 0:04:26]} g6 {[%emt 0:02:24]} 27. Ng3 {[%emt 0:00:06]} Rad8 {[%emt 0:01:52]} 28. Ne2 {[%emt 0:00:37]} Nxe2+ {[%emt 0:01:25]} 29. Bxe2 {[%emt 0:05:37]} Rxd1+ {[%emt 0:02:50]} 30. Bxd1 {[%emt 0:00:11]} Qd6 {[%emt 0:00:32]} 31. Bf3 {[%emt 0:01:46]} Bxf3 {[%emt 0:00:13]} 32. gxf3 {[%emt 0:07:39]} Qxf4 {[%emt 0:02:11]} 33. Rxe6 {[%emt 0:02:05]} Rd8 {[%emt 0:01:11]} 34. Qe1 {[%emt 0:09:28]} Qd4+ {[%emt 0:01:06]} 35. Kf1 {[%emt 0:03:35]} Qd3+ {[%emt 0:00:29]} 36. Qe2 {[%emt 0:00:06]} Qd1+ {[%emt 0:00:46]} 37. Qxd1 {[%emt 0:04:24]} Rxd1+ {[%emt 0:00:02]} 38. Kf2 {[%emt 0:00:06]} Rd2+ {[%emt 0:00:04]} 39. Re2 {[%emt 0:00:05]} Rb2 {[%emt 0:00:11]} 40. Ke3 {[%emt 0:00:04]} Kf7 {[%emt 0:03:34]} 41. Kd3 Rxe2 42. Kxe2 g5 43. Ke3 Kf6 44. Kd3 Ke5 45. Ke3 f4+ 46. Kd3 h6 47. h3 h5 48. Ke2 Kd4 49. Kd2 h4 50. Ke2 Kc3 51. Ke1 Kd3 {[%emt 0:35:31]} 0-1